[Event "Early-Titled-Tuesday-Blitz-February-20-2024"]
[Site "Chess.com"]
[Date "2024.02.20"]
[Round "4"]
[White "fighter2jz"]
[Black "Chessdreamer2020"]
[Result "1-0"]
[WhiteElo "2777"]
[BlackElo "2551"]
[TimeControl "180+1"]
[EndTime "8:40:44 PST"]
[Termination "fighter2jz won on time"]

1. Nf3 {[%clk 0:03:00.9]} 1... d6 {[%clk 0:02:59.5]} 2. c4 {[%clk 0:02:49.7]}
2... e5 {[%clk 0:02:59.1]} 3. Nc3 {[%clk 0:02:50.4]} 3... g6 {[%clk 0:02:57.4]}
4. h4 {[%clk 0:02:49.1]} 4... h6 {[%clk 0:02:56]} 5. d4 {[%clk 0:02:47.6]} 5...
Nd7 {[%clk 0:02:51.2]} 6. dxe5 {[%clk 0:02:44.2]} 6... dxe5 {[%clk 0:02:51]} 7.
Be3 {[%clk 0:02:44.8]} 7... Ngf6 {[%clk 0:02:49.3]} 8. Qc2 {[%clk 0:02:42.4]}
8... Ng4 {[%clk 0:02:48.1]} 9. O-O-O {[%clk 0:02:38.5]} 9... Nxe3 {[%clk
0:02:46.6]} 10. fxe3 {[%clk 0:02:39.4]} 10... Bg7 {[%clk 0:02:40.3]} 11. h5
{[%clk 0:02:38.4]} 11... g5 {[%clk 0:02:39.6]} 12. g3 {[%clk 0:02:36.1]} 12...
c6 {[%clk 0:02:36]} 13. Bh3 {[%clk 0:02:35.9]} 13... Qe7 {[%clk 0:02:35.3]} 14.
Ne4 {[%clk 0:02:35.1]} 14... O-O {[%clk 0:02:34.5]} 15. Nd6 {[%clk 0:02:29.5]}
15... Nb6 {[%clk 0:02:29]} 16. Bxc8 {[%clk 0:02:29]} 16... Nxc8 {[%clk
0:02:28.9]} 17. Nf5 {[%clk 0:02:29.1]} 17... Qe6 {[%clk 0:02:25.3]} 18. e4
{[%clk 0:02:23.8]} 18... Nb6 {[%clk 0:02:24.6]} 19. c5 {[%clk 0:02:10.2]} 19...
Nc8 {[%clk 0:02:21.4]} 20. Kb1 {[%clk 0:01:41.9]} 20... b6 {[%clk 0:02:21.7]}
21. a3 {[%clk 0:01:36.9]} 21... Rb8 {[%clk 0:02:21.3]} 22. Rd3 {[%clk 0:01:27]}
22... bxc5 {[%clk 0:02:20.6]} 23. Qxc5 {[%clk 0:01:26.8]} 23... Rb5 {[%clk
0:02:17]} 24. Qc2 {[%clk 0:01:19.3]} 24... Nb6 {[%clk 0:02:10.8]} 25. Rd6 {[%clk
0:01:16.4]} 25... Qb3 {[%clk 0:02:04.7]} 26. Qxb3 {[%clk 0:01:06.8]} 26... Rxb3
{[%clk 0:02:05.6]} 27. Ka2 {[%clk 0:01:05.7]} 27... Rb5 {[%clk 0:02:05.1]} 28.
b3 {[%clk 0:01:02]} 28... Kh7 {[%clk 0:02:00.6]} 29. Rxc6 {[%clk 0:00:59.7]}
29... Rd8 {[%clk 0:02:00.2]} 30. Rhc1 {[%clk 0:00:57.2]} 30... Bf8 {[%clk
0:01:46.3]} 31. Rc7 {[%clk 0:00:55.5]} 31... Kg8 {[%clk 0:01:46.7]} 32. Rxa7
{[%clk 0:00:51.3]} 32... Rb8 {[%clk 0:01:42]} 33. Rcc7 {[%clk 0:00:44.6]} 33...
Nc8 {[%clk 0:01:41.7]} 34. b4 {[%clk 0:00:21.8]} 34... Nxa7 {[%clk 0:01:40.8]}
35. Rxa7 {[%clk 0:00:22.7]} 35... Rc8 {[%clk 0:01:06]} 36. Ne1 {[%clk
0:00:14.8]} 36... Rc1 {[%clk 0:01:00.6]} 37. Nd3 {[%clk 0:00:08.7]} 37... Rc2+
{[%clk 0:01:00.5]} 38. Kb3 {[%clk 0:00:09.2]} 38... Rxe2 {[%clk 0:01:00.9]} 39.
Ra8 {[%clk 0:00:09]} 39... Rb6 {[%clk 0:00:58.4]} 40. Nc5 {[%clk 0:00:08.3]}
40... Rd2 {[%clk 0:00:50.8]} 41. Kc3 {[%clk 0:00:07.6]} 41... Rd1 {[%clk
0:00:50.2]} 42. Kc2 {[%clk 0:00:07.5]} 42... Rdd6 {[%clk 0:00:10.3]} 43. Nxd6
{[%clk 0:00:06.3]} 43... Rxd6 {[%clk 0:00:11.2]} 44. Nd3 {[%clk 0:00:06.6]}
44... f6 {[%clk 0:00:10]} 45. Nc5 {[%clk 0:00:06.6]} 45... Kf7 {[%clk
0:00:09.6]} 46. Ra7+ {[%clk 0:00:07]} 46... Kg8 {[%clk 0:00:08.6]} 47. Rd7
{[%clk 0:00:04.2]} 47... Rc6 {[%clk 0:00:07.2]} 48. Rd5 {[%clk 0:00:04.7]} 48...
Kf7 {[%clk 0:00:05.5]} 49. Kb3 {[%clk 0:00:05.3]} 49... Bxc5 {[%clk 0:00:01.8]}
50. Rxc5 {[%clk 0:00:05]} 50... Rd6 {[%clk 0:00:02]} 51. b5 {[%clk 0:00:04.5]}
51... Rd3+ {[%clk 0:00:01.9]} 52. Rc3 {[%clk 0:00:04.6]} 52... Rd1 {[%clk
0:00:01.4]} 53. a4 {[%clk 0:00:04.7]} 53... Rb1+ {[%clk 0:00:01.5]} 54. Kc4
{[%clk 0:00:05.2]} 54... f5 {[%clk 0:00:02.1]} 55. exf5 {[%clk 0:00:05.2]} 55...
Kf6 {[%clk 0:00:02.6]} 56. Kc5 {[%clk 0:00:05.3]} 56... Kxf5 {[%clk 0:00:02.5]}
57. b6 {[%clk 0:00:05.9]} 1-0

[Event "Early-Titled-Tuesday-Blitz-February-20-2024"]
[Site "Chess.com"]
[Date "2024.02.20"]
[Round "4"]
[White "only_strong_moves"]
[Black "Jojo_898"]
[Result "0-1"]
[WhiteElo "2643"]
[BlackElo "2465"]
[TimeControl "180+1"]
[EndTime "8:40:44 PST"]
[Termination "Jojo_898 won by resignation"]

1. e4 {[%clk 0:03:00.9]} 1... d6 {[%clk 0:02:59.9]} 2. d4 {[%clk 0:03:00.7]}
2... Nf6 {[%clk 0:03:00]} 3. Nc3 {[%clk 0:03:01]} 3... g6 {[%clk 0:03:00.6]} 4.
Bg5 {[%clk 0:03:01.1]} 4... Bg7 {[%clk 0:03:00.7]} 5. e5 {[%clk 0:03:01.8]} 5...
Nfd7 {[%clk 0:02:59.1]} 6. f4 {[%clk 0:03:01.2]} 6... f6 {[%clk 0:02:57.5]} 7.
exf6 {[%clk 0:02:58.6]} 7... exf6 {[%clk 0:02:57.5]} 8. Bh4 {[%clk 0:02:59.2]}
8... O-O {[%clk 0:02:56.7]} 9. Bc4+ {[%clk 0:02:59.5]} 9... Kh8 {[%clk
0:02:56.6]} 10. Nge2 {[%clk 0:02:59]} 10... Nb6 {[%clk 0:02:53.4]} 11. Bd3
{[%clk 0:02:59.5]} 11... Nc6 {[%clk 0:02:44.5]} 12. O-O {[%clk 0:02:57.6]} 12...
Ne7 {[%clk 0:02:42]} 13. Ng3 {[%clk 0:02:54.1]} 13... Bd7 {[%clk 0:02:39.1]} 14.
Qd2 {[%clk 0:02:44.4]} 14... f5 {[%clk 0:02:21.3]} 15. Kh1 {[%clk 0:02:28.4]}
15... Rf7 {[%clk 0:02:12.8]} 16. Rae1 {[%clk 0:02:26.8]} 16... Qf8 {[%clk
0:02:12.7]} 17. Nd1 {[%clk 0:02:14.1]} 17... c5 {[%clk 0:01:42]} 18. dxc5 {[%clk
0:02:11.1]} 18... dxc5 {[%clk 0:01:42.9]} 19. c3 {[%clk 0:02:11.1]} 19... Bc6
{[%clk 0:01:42.9]} 20. Be2 {[%clk 0:02:08.1]} 20... Rd8 {[%clk 0:01:42.5]} 21.
Qc2 {[%clk 0:02:08.7]} 21... Rd7 {[%clk 0:01:30.6]} 22. Bf3 {[%clk 0:02:08.3]}
22... Ned5 {[%clk 0:01:27.5]} 23. Ne3 {[%clk 0:01:56.2]} 23... Bf6 {[%clk
0:01:23.4]} 24. Bxf6+ {[%clk 0:01:54.4]} 24... Rxf6 {[%clk 0:01:24.3]} 25. Nxd5
{[%clk 0:01:50.9]} 25... Nxd5 {[%clk 0:01:24.8]} 26. Re5 {[%clk 0:01:47.6]}
26... Ne7 {[%clk 0:01:13.5]} 27. Qe2 {[%clk 0:01:42.1]} 27... Bxf3 {[%clk
0:01:12]} 28. Qxf3 {[%clk 0:01:39.9]} 28... Nc6 {[%clk 0:01:10.5]} 29. Re2
{[%clk 0:01:38.4]} 29... Re7 {[%clk 0:01:04.4]} 30. Rd2 {[%clk 0:01:34.4]} 30...
Rfe6 {[%clk 0:01:01]} 31. h3 {[%clk 0:01:32.2]} 31... Qf7 {[%clk 0:00:57.8]} 32.
Kh2 {[%clk 0:01:26.8]} 32... Re3 {[%clk 0:00:57.5]} 33. Qd5 {[%clk 0:01:24.3]}
33... Qxd5 {[%clk 0:00:51.2]} 34. Rxd5 {[%clk 0:01:25.2]} 34... Kg7 {[%clk
0:00:50.5]} 35. Rxc5 {[%clk 0:01:22.4]} 35... h5 {[%clk 0:00:50.6]} 36. Rf2
{[%clk 0:01:16.3]} 36... Rd7 {[%clk 0:00:46.1]} 37. h4 {[%clk 0:01:10.8]} 37...
Rdd3 {[%clk 0:00:43.6]} 38. Nf1 {[%clk 0:01:06.7]} 38... Re1 {[%clk 0:00:44.1]}
39. b4 {[%clk 0:01:00.8]} 39... a6 {[%clk 0:00:40.1]} 40. a4 {[%clk 0:00:59]}
40... Kf6 {[%clk 0:00:38.9]} 41. b5 {[%clk 0:00:59.2]} 41... axb5 {[%clk
0:00:39.2]} 42. axb5 {[%clk 0:01:00.1]} 42... Ne7 {[%clk 0:00:39.8]} 43. Ng3
{[%clk 0:00:36.8]} 43... Ree3 {[%clk 0:00:35.6]} 44. Ne2 {[%clk 0:00:34.1]}
44... Rd2 {[%clk 0:00:33]} 45. Re5 {[%clk 0:00:31.9]} 45... Rxe5 {[%clk
0:00:29.7]} 46. fxe5+ {[%clk 0:00:32.8]} 46... Kxe5 {[%clk 0:00:30.3]} 47. Kg1
{[%clk 0:00:27.8]} 47... Nd5 {[%clk 0:00:24.6]} 48. c4 {[%clk 0:00:24.6]} 48...
Ne3 {[%clk 0:00:24.7]} 49. Nc3 {[%clk 0:00:06.2]} 49... Rxf2 {[%clk 0:00:23.2]}
50. Kxf2 {[%clk 0:00:07.1]} 50... Nxc4 {[%clk 0:00:23.6]} 51. Na4 {[%clk
0:00:07.6]} 51... Nd6 {[%clk 0:00:23.2]} 52. Nc5 {[%clk 0:00:06.3]} 52... Kd5
{[%clk 0:00:19.8]} 53. Nd7 {[%clk 0:00:05.9]} 53... Nxb5 {[%clk 0:00:20.2]} 54.
Nf8 {[%clk 0:00:06]} 54... Nd6 {[%clk 0:00:19.2]} 55. Nxg6 {[%clk 0:00:06.1]}
55... Ne8 {[%clk 0:00:19.3]} 56. Kf3 {[%clk 0:00:04.5]} 56... Ng7 {[%clk
0:00:18.5]} 57. Kf4 {[%clk 0:00:04.6]} 57... b5 {[%clk 0:00:19.1]} 58. Kg5
{[%clk 0:00:05.1]} 58... b4 {[%clk 0:00:19.5]} 59. Nf4+ {[%clk 0:00:05.3]} 59...
Kd4 {[%clk 0:00:19.4]} 60. Ne2+ {[%clk 0:00:05.6]} 60... Kd3 {[%clk 0:00:20.1]}
61. Nc1+ {[%clk 0:00:05.9]} 61... Ke3 {[%clk 0:00:20.4]} 62. Nb3 {[%clk
0:00:03.3]} 62... Kf2 {[%clk 0:00:20.5]} 63. Kg6 {[%clk 0:00:03.1]} 63... Kxg2
{[%clk 0:00:21.1]} 64. Kxg7 {[%clk 0:00:03.3]} 64... f4 {[%clk 0:00:21.9]} 65.
Kg6 {[%clk 0:00:03.7]} 65... f3 {[%clk 0:00:22.6]} 66. Kxh5 {[%clk 0:00:04.1]}
66... f2 {[%clk 0:00:23.3]} 67. Kg6 {[%clk 0:00:05]} 67... f1=Q {[%clk
0:00:23.8]} 68. h5 {[%clk 0:00:05.9]} 68... Qd3+ {[%clk 0:00:24]} 69. Kg7 {[%clk
0:00:05.7]} 69... Qxb3 {[%clk 0:00:24.6]} 70. h6 {[%clk 0:00:06.6]} 70... Qg3+
{[%clk 0:00:24.9]} 71. Kh7 {[%clk 0:00:06.6]} 71... b3 {[%clk 0:00:24.9]} 72.
Kh8 {[%clk 0:00:07.5]} 72... Qh3 {[%clk 0:00:23.7]} 73. h7 {[%clk 0:00:08.4]}
73... Qxh7+ {[%clk 0:00:24.3]} 74. Kxh7 {[%clk 0:00:08.7]} 74... b2 {[%clk
0:00:25]} 75. Kh8 {[%clk 0:00:09.6]} 75... b1=Q {[%clk 0:00:25.5]} 76. Kg8
{[%clk 0:00:10]} 76... Qb7 {[%clk 0:00:25.7]} 77. Kh8 {[%clk 0:00:10.9]} 77...
Kf3 {[%clk 0:00:26.4]} 78. Kg8 {[%clk 0:00:11.8]} 78... Ke4 {[%clk 0:00:27.1]}
79. Kh8 {[%clk 0:00:12.7]} 79... Kf5 {[%clk 0:00:27.8]} 0-1

[Event "Early-Titled-Tuesday-Blitz-February-20-2024"]
[Site "Chess.com"]
[Date "2024.02.20"]
[Round "4"]
[White "Ali_rastbod"]
[Black "Eagle_2019"]
[Result "0-1"]
[WhiteElo "2691"]
[BlackElo "2876"]
[TimeControl "180+1"]
[EndTime "8:40:46 PST"]
[Termination "Eagle_2019 won by resignation"]

1. d4 {[%clk 0:03:00.9]} 1... Nf6 {[%clk 0:02:58.6]} 2. Nc3 {[%clk 0:02:59.2]}
2... d5 {[%clk 0:02:52.3]} 3. Bf4 {[%clk 0:02:59.3]} 3... c5 {[%clk 0:02:48.6]}
4. e4 {[%clk 0:02:59.5]} 4... Nxe4 {[%clk 0:02:47.5]} 5. Nxe4 {[%clk 0:02:59.4]}
5... dxe4 {[%clk 0:02:48.4]} 6. dxc5 {[%clk 0:03:00.1]} 6... Qa5+ {[%clk
0:02:47.5]} 7. c3 {[%clk 0:03:00.1]} 7... Qxc5 {[%clk 0:02:48]} 8. Qa4+ {[%clk
0:03:00.7]} 8... Nc6 {[%clk 0:02:48.2]} 9. Qxe4 {[%clk 0:03:01.2]} 9... g6
{[%clk 0:02:48.4]} 10. Nf3 {[%clk 0:03:00.4]} 10... Bg7 {[%clk 0:02:48.5]} 11.
Qe3 {[%clk 0:03:00.9]} 11... Qxe3+ {[%clk 0:02:46.8]} 12. Bxe3 {[%clk
0:03:01.8]} 12... O-O {[%clk 0:02:46.9]} 13. Bd3 {[%clk 0:02:39.9]} 13... Rd8
{[%clk 0:02:41.3]} 14. Be4 {[%clk 0:02:39.7]} 14... Bf5 {[%clk 0:02:40.2]} 15.
Bxf5 {[%clk 0:02:36.8]} 15... gxf5 {[%clk 0:02:41.1]} 16. Rd1 {[%clk 0:02:35.4]}
16... e5 {[%clk 0:02:40.3]} 17. Ke2 {[%clk 0:02:30.3]} 17... f4 {[%clk
0:02:33.6]} 18. Bc1 {[%clk 0:02:28]} 18... f6 {[%clk 0:02:23.9]} 19. Nh4 {[%clk
0:02:23.6]} 19... Ne7 {[%clk 0:02:22.2]} 20. b3 {[%clk 0:02:11.3]} 20... Kf7
{[%clk 0:02:21.5]} 21. Ba3 {[%clk 0:02:10.9]} 21... Bf8 {[%clk 0:02:14.3]} 22.
Bxe7 {[%clk 0:02:08.7]} 22... Bxe7 {[%clk 0:02:15.2]} 23. Nf5 {[%clk 0:02:08.9]}
23... Bf8 {[%clk 0:02:14.9]} 24. g4 {[%clk 0:01:47.4]} 24... b5 {[%clk
0:01:08.3]} 25. f3 {[%clk 0:01:37.6]} 25... Ke6 {[%clk 0:01:00.5]} 26. Rxd8
{[%clk 0:00:46.7]} 26... Rxd8 {[%clk 0:00:59.8]} 27. Rc1 {[%clk 0:00:46.8]}
27... a5 {[%clk 0:00:47.9]} 28. c4 {[%clk 0:00:40.3]} 28... b4 {[%clk
0:00:47.4]} 29. c5 {[%clk 0:00:34.6]} 29... Rc8 {[%clk 0:00:44.6]} 30. c6 {[%clk
0:00:33.5]} 30... Kd5 {[%clk 0:00:44.6]} 31. c7 {[%clk 0:00:28]} 31... Bc5
{[%clk 0:00:44.4]} 32. Rd1+ {[%clk 0:00:18.2]} 32... Kc6 {[%clk 0:00:42.7]} 33.
Rd8 {[%clk 0:00:12.5]} 33... Rxc7 {[%clk 0:00:40.8]} 34. Kd3 {[%clk 0:00:12.4]}
34... Ra7 {[%clk 0:00:33.7]} 35. Rc8+ {[%clk 0:00:11.1]} 35... Kd5 {[%clk
0:00:31.7]} 36. Rd8+ {[%clk 0:00:11.6]} 36... Kc6 {[%clk 0:00:28.4]} 37. Rc8+
{[%clk 0:00:11.4]} 37... Kb5 {[%clk 0:00:26.2]} 38. Rb8+ {[%clk 0:00:09]} 38...
Bb6 {[%clk 0:00:26]} 39. Nd6+ {[%clk 0:00:07.1]} 39... Kc6 {[%clk 0:00:25.2]}
40. Nc4 {[%clk 0:00:07.6]} 40... Rd7+ {[%clk 0:00:23.8]} 41. Ke4 {[%clk
0:00:08.1]} 41... Bc7 {[%clk 0:00:19.9]} 42. Ra8 {[%clk 0:00:06.7]} 42... Rd4+
{[%clk 0:00:18.2]} 43. Kf5 {[%clk 0:00:07.3]} 43... e4 {[%clk 0:00:17.5]} 44.
fxe4 {[%clk 0:00:05.1]} 44... f3 {[%clk 0:00:16.2]} 45. Ke6 {[%clk 0:00:03.4]}
45... Rxe4+ {[%clk 0:00:14.6]} 46. Kf7 {[%clk 0:00:03.3]} 46... f2 {[%clk
0:00:12.3]} 47. Ra6+ {[%clk 0:00:03.9]} 47... Kd5 {[%clk 0:00:11.6]} 48. Rxf6
{[%clk 0:00:04.3]} 48... Rf4 {[%clk 0:00:10]} 49. Ne3+ {[%clk 0:00:04.5]} 49...
Ke4 {[%clk 0:00:09.6]} 50. Nf1 {[%clk 0:00:04.2]} 50... Kf3 {[%clk 0:00:08]} 51.
g5 {[%clk 0:00:02.2]} 51... Kg2 {[%clk 0:00:03.9]} 52. Ne3+ {[%clk 0:00:02.7]}
52... Kxh2 {[%clk 0:00:03.7]} 53. Kg7 {[%clk 0:00:02.2]} 53... Kg1 {[%clk
0:00:02.4]} 54. Kxh7 {[%clk 0:00:01.8]} 54... Rxf6 {[%clk 0:00:02.6]} 55. gxf6
{[%clk 0:00:02.7]} 55... f1=Q {[%clk 0:00:03.2]} 56. Nxf1 {[%clk 0:00:03.3]}
56... Kxf1 {[%clk 0:00:04.1]} 57. f7 {[%clk 0:00:03.6]} 57... Bd6 {[%clk
0:00:04.7]} 58. Kg6 {[%clk 0:00:04.5]} 58... Ke2 {[%clk 0:00:05.1]} 59. Kf5
{[%clk 0:00:05.4]} 59... Kd2 {[%clk 0:00:05.6]} 60. Ke6 {[%clk 0:00:06.3]} 60...
Bf8 {[%clk 0:00:06]} 61. Kd5 {[%clk 0:00:07]} 61... Kc2 {[%clk 0:00:06.4]} 62.
Kc4 {[%clk 0:00:07.8]} 62... Kb2 {[%clk 0:00:06.9]} 63. Kb5 {[%clk 0:00:08.5]}
63... Kxa2 {[%clk 0:00:07.4]} 64. Ka4 {[%clk 0:00:08.5]} 64... Kb2 {[%clk
0:00:07.4]} 65. Kxa5 {[%clk 0:00:09]} 65... Kxb3 {[%clk 0:00:08]} 66. Kb5 {[%clk
0:00:09.9]} 66... Kc3 {[%clk 0:00:08.5]} 67. Kc6 {[%clk 0:00:10.8]} 67... b3
{[%clk 0:00:08.6]} 68. Kd7 {[%clk 0:00:11.7]} 68... b2 {[%clk 0:00:09.2]} 69.
Ke8 {[%clk 0:00:12.6]} 69... Bb4 {[%clk 0:00:09.4]} 70. f8=Q {[%clk 0:00:12.1]}
70... Bxf8 {[%clk 0:00:09.3]} 71. Kxf8 {[%clk 0:00:13]} 71... b1=Q {[%clk
0:00:10.2]} 0-1

[Event "Early-Titled-Tuesday-Blitz-February-20-2024"]
[Site "Chess.com"]
[Date "2024.02.20"]
[Round "4"]
[White "AlexTruskavetsky"]
[Black "Shield12"]
[Result "0-1"]
[WhiteElo "2715"]
[BlackElo "2971"]
[TimeControl "180+1"]
[EndTime "8:40:51 PST"]
[Termination "Shield12 won by checkmate"]

1. d4 {[%clk 0:03:00.7]} 1... Nf6 {[%clk 0:02:59.9]} 2. c4 {[%clk 0:02:58.9]}
2... e6 {[%clk 0:03:00]} 3. Nc3 {[%clk 0:02:57.5]} 3... Bb4 {[%clk 0:02:59]} 4.
e3 {[%clk 0:02:57.8]} 4... O-O {[%clk 0:02:58.7]} 5. a3 {[%clk 0:02:57.4]} 5...
Bxc3+ {[%clk 0:02:58.3]} 6. bxc3 {[%clk 0:02:58.3]} 6... d6 {[%clk 0:02:56.6]}
7. Bd3 {[%clk 0:02:58]} 7... e5 {[%clk 0:02:56.6]} 8. Ne2 {[%clk 0:02:57.4]}
8... e4 {[%clk 0:02:56.6]} 9. Bc2 {[%clk 0:02:57.7]} 9... Re8 {[%clk 0:02:57.5]}
10. O-O {[%clk 0:02:57.7]} 10... Qe7 {[%clk 0:02:55.7]} 11. f3 {[%clk
0:02:57.3]} 11... Bf5 {[%clk 0:02:55.4]} 12. Ng3 {[%clk 0:02:57.5]} 12... Bg6
{[%clk 0:02:55.5]} 13. Rb1 {[%clk 0:02:57.7]} 13... exf3 {[%clk 0:02:51.6]} 14.
gxf3 {[%clk 0:02:55.8]} 14... b6 {[%clk 0:02:47.5]} 15. e4 {[%clk 0:02:55.8]}
15... Qd7 {[%clk 0:02:42.8]} 16. Bg5 {[%clk 0:02:32.6]} 16... Nh5 {[%clk
0:02:41]} 17. Nxh5 {[%clk 0:02:28.1]} 17... Bxh5 {[%clk 0:02:41.9]} 18. Rf2
{[%clk 0:02:26.7]} 18... f6 {[%clk 0:02:32.5]} 19. Be3 {[%clk 0:02:22.9]} 19...
Qf7 {[%clk 0:02:30.8]} 20. c5 {[%clk 0:02:17.2]} 20... d5 {[%clk 0:02:26]} 21.
cxb6 {[%clk 0:01:41.6]} 21... axb6 {[%clk 0:02:25.1]} 22. Qc1 {[%clk 0:01:41.4]}
22... Nc6 {[%clk 0:02:20.1]} 23. Bb3 {[%clk 0:01:38]} 23... Ne7 {[%clk
0:02:17.4]} 24. Bf4 {[%clk 0:01:26.8]} 24... c6 {[%clk 0:02:15.9]} 25. c4 {[%clk
0:01:25.2]} 25... Kh8 {[%clk 0:02:13.6]} 26. cxd5 {[%clk 0:01:23.7]} 26... cxd5
{[%clk 0:02:14.5]} 27. Kh1 {[%clk 0:01:17.3]} 27... Qg6 {[%clk 0:02:12.1]} 28.
e5 {[%clk 0:00:55.9]} 28... Rac8 {[%clk 0:01:55.2]} 29. Qd1 {[%clk 0:00:47.8]}
29... Qf5 {[%clk 0:01:48.4]} 30. Bg3 {[%clk 0:00:46]} 30... Rc3 {[%clk
0:01:46.4]} 31. Kg2 {[%clk 0:00:42.4]} 31... Bxf3+ {[%clk 0:01:44.8]} 32. Rxf3
{[%clk 0:00:40.1]} 32... Rxf3 {[%clk 0:01:45.7]} 33. Qxf3 {[%clk 0:00:40.9]}
33... Qxb1 {[%clk 0:01:45]} 34. exf6 {[%clk 0:00:41.5]} 34... Nf5 {[%clk
0:01:27.3]} 35. fxg7+ {[%clk 0:00:41.7]} 35... Nxg7 {[%clk 0:01:25.2]} 36. Bxd5
{[%clk 0:00:39.3]} 36... Qc2+ {[%clk 0:01:16.3]} 37. Kh3 {[%clk 0:00:39.6]}
37... Qc8+ {[%clk 0:01:11.9]} 38. Kg2 {[%clk 0:00:36.8]} 38... Rf8 {[%clk
0:01:10.2]} 39. Qd3 {[%clk 0:00:36.5]} 39... Qg4 {[%clk 0:01:01.1]} 40. Bf3
{[%clk 0:00:23.1]} 40... Qg5 {[%clk 0:01:01.1]} 41. h4 {[%clk 0:00:23.3]} 41...
Qg6 {[%clk 0:00:53.3]} 42. Qxg6 {[%clk 0:00:20.7]} 42... hxg6 {[%clk 0:00:54.2]}
43. Bc7 {[%clk 0:00:19.7]} 43... Nf5 {[%clk 0:00:52.8]} 44. Be4 {[%clk
0:00:19.5]} 44... b5 {[%clk 0:00:22.7]} 45. Kh3 {[%clk 0:00:16.6]} 45... Nxd4
{[%clk 0:00:19.9]} 46. Be5+ {[%clk 0:00:16.7]} 46... Kh7 {[%clk 0:00:20]} 47. h5
{[%clk 0:00:17]} 47... Nf5 {[%clk 0:00:18.9]} 48. hxg6+ {[%clk 0:00:17.6]} 48...
Kh6 {[%clk 0:00:16.9]} 49. Bxf5 {[%clk 0:00:16.9]} 49... Rxf5 {[%clk 0:00:16.6]}
50. g7 {[%clk 0:00:17.6]} 50... Kh7 {[%clk 0:00:16.1]} 51. Bd6 {[%clk
0:00:13.3]} 51... Kxg7 {[%clk 0:00:15]} 52. Kg4 {[%clk 0:00:13.8]} 52... Kf6
{[%clk 0:00:14.6]} 53. Be7+ {[%clk 0:00:12.7]} 53... Ke6 {[%clk 0:00:14.4]} 54.
Bb4 {[%clk 0:00:13.4]} 54... Ke5 {[%clk 0:00:14.5]} 55. Bc3+ {[%clk 0:00:12.5]}
55... Ke4 {[%clk 0:00:14.6]} 56. Bb4 {[%clk 0:00:13.1]} 56... Rf1 {[%clk
0:00:14.1]} 57. Kg3 {[%clk 0:00:13.5]} 57... Rf3+ {[%clk 0:00:12.6]} 58. Kg2
{[%clk 0:00:13.8]} 58... Ke3 {[%clk 0:00:12.4]} 59. Bc5+ {[%clk 0:00:13.3]}
59... Ke2 {[%clk 0:00:12.8]} 60. Bb4 {[%clk 0:00:14.2]} 60... Rf7 {[%clk
0:00:11.1]} 61. Kg3 {[%clk 0:00:14.7]} 61... Ke3 {[%clk 0:00:10.2]} 62. Kg4
{[%clk 0:00:14.4]} 62... Rf4+ {[%clk 0:00:10]} 63. Kg3 {[%clk 0:00:14.5]} 63...
Rc4 {[%clk 0:00:08.7]} 64. Bd6 {[%clk 0:00:14.5]} 64... Kd3 {[%clk 0:00:08.5]}
65. Kf3 {[%clk 0:00:14.8]} 65... Kc3 {[%clk 0:00:08.1]} 66. Ke3 {[%clk
0:00:15.5]} 66... Kb3 {[%clk 0:00:07.3]} 67. Kd2 {[%clk 0:00:16]} 67... Rd4+
{[%clk 0:00:07.1]} 68. Kc1 {[%clk 0:00:14.6]} 68... Rxd6 {[%clk 0:00:07.1]} 69.
Kb1 {[%clk 0:00:15.3]} 69... Rd1# {[%clk 0:00:05.6]} 0-1